Cogmind - Beta 11 --- EXPLORER MODE // 2022.03.30 @ 12:15:22 Player: Zaltroth Result: Self-destructed Performance ------------- Evolutions (7) 3500 Regions Visited (22) 4400 Robots Destroyed (192) 960 Value Destroyed (7655) 7655 Prototype IDs (59) 1180 Alien Tech Used (2) 400 Bonus (6053) 6053 TOTAL SCORE: 24148 Bonus ------- Triggered Max Security 1000 High Alert Combat Kills 84 Follower Combat Kills 869 Entered Garrisons 200 Entered DSFs 500 Aligned with FarCom 300 Met Zhirov 300 A7 Reached Mainframe 300 Met R17 at Cetus 500 Acquired SGEMP 2000 Cogmind --------- Core Integrity 174/1300 Matter 300/300 Energy 100/100 System Corruption 10% Temperature Cool (0) Movement Core (50) Location -3/Testing Parts ------- > --- POWER (2) -------- (None) > --- PROPULSION (6) --- (None) > --- UTILITY (11) ----- Spectral Analyzer > --- WEAPON (3) ------- (None) > --- INVENTORY (5) ---- Advanced Heat Sink Heavy Dispersion Rifle SGEMP Prototype Peak State ------------ > --- POWER ------------ Light Antimatter Reactor Light Particle Reactor > --- PROPULSION ------- Impulse Thruster Impulse Thruster Impulse Thruster Cooled Field Propulsion Drive Impulse Thruster Array > --- UTILITY ---------- 2N-1CE's Frost Array Small Storage Unit Advanced Visual Processing Unit Experimental Melee Analysis Suite Improved Target Analyzer Improved Transmission Jammer Improved Reaction Control System Experimental Utility Shielding Hacking Suite Advanced Hacking Suite Improved System Shield > --- WEAPON ----------- Precision Phase Gun Molecular Scythe Molecular Scythe > --- INVENTORY -------- Field Propulsion Drive Impulse Thruster Impulse Thruster Array Advanced Heat Sink Graphene Brace Improved Datajack [Rating: 147] Favorites ----------- Power Micro Fission Core Engine Light Ion Engine Power Core Micro Fission Core Reactor Light Antimatter Reactor Propulsion Improved VTOL Module Leg Aluminum Leg Wheel Compact Wheel Hover Unit Aerolev Unit Flight Unit Improved VTOL Module Utility Small Storage Unit Device Cryofiber Web Storage Small Storage Unit Processor Improved Target Analyzer Hackware Improved System Shield Protection Experimental Weapon Shielding Weapon Longsword +1 Energy Gun Improved EM Shotgun Ballistic Gun Enhanced Coil Gun Launcher Mini Grenade Launcher Special Weapon Improved Remote Datajack Impact Weapon Shock Maul Slashing Weapon Longsword +1 Special Melee Weapon Advanced Datajack Build | -11 -10 -10 -10 -9 -8 -8 -8 -6 -6 -5 -5 -5 -5 -4 -4 -4 -4 -4 -4 -4 -3 -3 ------- Run | Scr Mat Min Exi Min Mat Sto Rec Fac DSF Fac Upp Upp Zhi Pro Fac Ext Cet Arc Hub Gar Res Tes Slots Evolved 15 | . 1 . . . 4 . . 4 . 2 . . . . 2 . . . . . 2 . Power 1 | . . . . . 1 . . . . . . . . . . . . . . . . . Propulsion 4 | . . . . . 2 . . 1 . . . . . . . . . . . . 1 . Utility 9 | . 1 . . . 1 . . 3 . 2 . . . . 1 . . . . . 1 . Weapon 1 | . . . . . . . . . . . . . . . 1 . . . . . . . Parts Attached 218 | 11 15 1 6 1 12 17 . 3 8 20 2 5 6 12 11 11 3 2 11 4 24 33 Power 37 | 1 2 . . . 3 2 . . 3 4 . 2 . 4 4 1 . . . 2 5 4 Engine 9 | 1 2 . . . 3 1 . . . 1 . . . . . . . . . 1 . . Core 16 | . . . . . . 1 . . 3 3 . 2 . 1 2 1 . . . 1 2 . Reactor 12 | . . . . . . . . . . . . . . 3 2 . . . . . 3 4 Propulsion 67 | 4 2 . . . 6 9 . 1 1 3 . 1 3 5 3 . 1 . 6 . 13 9 Treads . | . . . . . . . . . . . . . . . . . . . . . . . Leg 2 | 2 . . . . . . . . . . . . . . . . . . . . . . Wheel 4 | 2 2 . . . . . . . . . . . . . . . . . . . . . Hover 2 | . . . . . . 1 . . . . . . 1 . . . . . . . . . Flight 59 | . . . . . 6 8 . 1 1 3 . 1 2 5 3 . 1 . 6 . 13 9 Utility 73 | 4 5 1 5 1 2 3 . 2 1 5 1 1 3 2 3 9 2 2 2 1 5 13 Device 33 | 1 2 1 2 . 1 1 . 1 1 3 1 . . . . 6 1 1 1 . 3 7 Storage 9 | 1 1 . 3 . . 1 . . . . . . 1 . . . . 1 1 . . . Processor 17 | 1 1 . . 1 . 1 . . . 2 . 1 . 2 2 3 . . . 1 . 2 Hackware 8 | . . . . . 1 . . 1 . . . . 1 . 1 . . . . . 2 2 Protection 6 | 1 1 . . . . . . . . . . . 1 . . . 1 . . . . 2 Artifact . | . . . . . . . . . . . . . . . . . . . . . . . Weapon 41 | 2 6 . 1 . 1 3 . . 3 8 1 1 . 1 1 1 . . 3 1 1 7 Energy Gun 14 | 2 4 . . . . 3 . . 1 1 . . . . . . . . . . . 3 Energy Cannon . | . . . . . . . . . . . . . . . . . . . . . . . Ballistic Gun 1 | . . . . . . . . . . . . . . . . . . . . . . 1 Ballistic Cannon . | . . . . . . . . . . . . . . . . . . . . . . . Launcher 7 | . 2 . . . 1 . . . 1 3 . . . . . . . . . . . . Special Weapon 5 | . . . . . . . . . . 2 1 . . 1 . . . . 1 . . . Impact Weapon 1 | . . . . . . . . . . 1 . . . . . . . . . . . . Slashing Weapon 10 | . . . 1 . . . . . 1 1 . 1 . . 1 . . . 2 1 1 1 Piercing Weapon . | . . . . . . . . . . . . . . . . . . . . . . . Special Melee Weapon 3 | . . . . . . . . . . . . . . . . 1 . . . . . 2 Unidentified Prototypes 32 | . 1 . 3 . . 4 . . . 4 1 . 5 . 2 . 1 . 1 . 1 9 Parts Lost 72 | . 3 . . . . 1 . . 2 1 . 4 . 6 1 1 . 2 6 5 11 29 Power 15 | . 1 . . . . . . . . . . 2 . 2 1 1 . . 1 2 2 3 Propulsion 24 | . 1 . . . . 1 . . 1 . . 1 . 2 . . . . 3 1 5 9 Utility 26 | . 1 . . . . . . . 1 1 . 1 . 2 . . . 2 2 1 2 13 Weapon 7 | . . . . . . . . . . . . . . . . . . . . 1 2 4 Highest Loss Streak 29 | . 2 . . . . 1 . . 1 1 . 2 . 6 1 1 . 1 6 4 8 29 To Critical Strikes 1 | . . . . . . . . . . . . . . . . . . . . . . 1 Average Slot Usage (%) 91 | . 97 100 99 99 96 97 91 84 85 89 95 84 84 81 80 86 89 90 91 80 80 68 Engine 6 | . 11 12 12 12 15 14 8 6 2 . . . . . . . . . . 4 . . Core 4 | . . . . . . 1 8 6 7 11 11 10 11 . 4 8 10 10 9 4 3 . Wheel 7 | . 25 25 25 25 . . . . . . . . . . . . . . . . . . Flight 16 | . . . . . 32 32 33 31 31 27 27 27 26 26 15 15 14 15 18 14 17 15 Device 13 | . 16 25 24 15 7 4 . 6 9 16 23 13 11 5 5 9 14 15 14 9 7 12 Storage 7 | . 12 12 11 12 8 7 8 6 6 5 5 5 5 5 5 5 5 5 5 5 4 3 Processor 11 | . 1 . . 9 8 9 8 6 2 8 11 15 16 21 28 25 20 20 20 21 20 12 Hackware 4 | . . . . . 6 8 8 9 12 8 5 5 5 5 5 5 5 5 5 5 8 10 Protection 1 | . 4 . . . . . . . . . . . . 5 5 5 5 5 4 . . 1 Energy Gun 3 | . 13 12 4 . . 6 8 6 5 1 . . . . . . . . . . . 1 Launcher 4 | . 10 12 12 12 7 1 . . . 2 3 . . . . . . . . . . . Slashing Weapon 7 | . . . 7 12 8 8 8 6 5 5 3 3 5 5 7 10 10 10 10 10 12 5 Naked Turns . | . . . . . . . . . . . . . . . . . . . . . . . Heaviest Build 38 | 17 21 14 14 14 18 20 20 21 22 27 28 25 23 23 31 34 29 31 35 35 37 38 Greatest Support 57 | 20 32 32 32 32 18 20 20 25 25 26 26 26 26 25 35 35 35 35 36 35 46 57 Greatest Overweight (x) 7 | 4 . . . . . 5 . . . 1 1 . 7 . . . 1 . . 1 1 5 Average Overweight (x) . | . . . . . . . . . . . . . . . . . . . . . . . Largest Inventory Capacity 40 | 10 10 8 40 8 8 8 8 8 8 8 8 8 8 8 8 8 8 8 8 8 8 8 Average Capacity 8 | 9 9 8 8 8 8 7 8 8 8 8 8 8 8 8 8 8 8 8 8 8 8 7 Most Carried 10 | 10 10 8 8 8 8 8 8 7 7 8 8 8 8 8 8 8 8 8 8 7 8 8 Average Carried 7 | 7 8 7 7 7 7 7 8 6 6 7 7 7 7 7 7 7 8 6 7 5 7 6 Final Capacity 10 | 10 8 8 8 8 8 8 8 8 8 8 8 8 8 8 8 8 8 8 8 8 8 5 Final Carried 10 | 10 6 8 8 8 8 8 8 6 5 8 8 8 8 8 8 8 8 5 5 6 6 4 Class Distribution -------------------- 29% | Hacker-Sprinter 25% | Scavenger-Mutant 19% | Hacker-Mutant 17% | Hacker-Scout 5% | Scavenger-Sprinter Dominant Class ---------------- Hacker-Mutant | -10/Materials Scavenger-Mutant | -10/Mines Scavenger-Mutant | -10/Exiles Scavenger-Mutant | -9/Mines Hacker-Scout | -8/Materials Hacker-Scout | -8/Storage Hacker-Sprinter | -8/Recycling Hacker-Sprinter | -6/Factory Hacker-Sprinter | -6/DSF Hacker-Sprinter | -5/Factory Hacker-Sprinter | -5/Upper Caves Hacker-Sprinter | -5/Upper Caves Hacker-Sprinter | -5/Zhirov Scavenger-Sprinter | -4/Proximity Caves Hacker-Scout | -4/Factory Hacker-Scout | -4/Extension Hacker-Mutant | -4/Cetus Hacker-Mutant | -4/Archives Hacker-Sprinter | -4/Hub_04(d) Hacker-Mutant | -4/Garrison Hacker-Sprinter | -3/Research Hacker-Mutant | -3/Testing Resources | -11 -10 -10 -10 -9 -8 -8 -8 -6 -6 -5 -5 -5 -5 -4 -4 -4 -4 -4 -4 -4 -3 -3 ----------- Run | Scr Mat Min Exi Min Mat Sto Rec Fac DSF Fac Upp Upp Zhi Pro Fac Ext Cet Arc Hub Gar Res Tes Matter Collected 2451 | 310 190 57 . 90 120 189 . . 115 212 56 90 . 160 115 60 85 20 109 30 208 235 Remotely . | . . . . . . . . . . . . . . . . . . . . . . . Salvage Created 9677 | 138 335 252 . 246 610 1397 9 . 454 648 56 578 . 405 559 996 274 371 663 276 1363 47 Parts 491 | 11 16 12 . 18 32 82 . . 32 30 1 28 . 19 22 37 15 16 44 18 57 1 Haulers Intercepted 16 | . . . . . 2 5 . . 1 2 . . . . 2 . . . 2 . 2 . Recyclers Shooed 3 | 1 1 1 . . . . . . . . . . . . . . . . . . . . Parts Field Recycled . | . . . . . . . . . . . . . . . . . . . . . . . Retrieved Matter . | . . . . . . . . . . . . . . . . . . . . . . . Parts Self-Destructed . | . . . . . . . . . . . . . . . . . . . . . . . Prevented . | . . . . . . . . . . . . . . . . . . . . . . . Kills | -11 -10 -10 -10 -9 -8 -8 -8 -6 -6 -5 -5 -5 -5 -4 -4 -4 -4 -4 -4 -4 -3 -3 ------- Run | Scr Mat Min Exi Min Mat Sto Rec Fac DSF Fac Upp Upp Zhi Pro Fac Ext Cet Arc Hub Gar Res Tes Combat Hostiles Destroyed 133 | . 6 4 . 8 6 20 1 . 12 9 2 11 . 9 4 9 4 4 8 4 12 . Melee 112 | . . . . 4 6 20 1 . 12 5 . 10 . 9 4 9 4 4 8 4 12 . Guns 2 | . . 2 . . . . . . . . . . . . . . . . . . . . AOE 16 | . 6 2 . 4 . . . . . 4 . . . . . . . . . . . . Classes Destroyed 17 | 2 4 1 . 1 2 2 1 . 1 1 1 . . . . . . . . . 1 . Worker 4 | . . 1 . 1 . . . . . . . . . . 1 . . . 1 . . . Builder 4 | . 1 1 . 1 . . . . . . . . . . . 1 . . . . . . Tunneler 3 | 2 . 1 . . . . . . . . . . . . . . . . . . . . Hauler 16 | . . . . . 2 5 . . 1 2 . . . . 2 . . . 2 . 2 . Recycler 10 | 1 2 2 . . 1 1 . . . . . . . . . 1 . . . . 2 . Operator 1 | . . . . . . . . . . . . . . . . . . . . . 1 . Drone 1 | . . . . . . . 1 . . . . . . . . . . . . . . . Watcher 21 | . 2 . . . 4 2 . . . 2 . . . . 1 3 1 . 2 . 3 1 Swarmer 31 | . 2 4 . 3 . 1 . . . 4 . 2 . 6 . . . . 4 . 5 . Cutter 9 | . . . . . . . . . 9 . . . . . . . . . . . . . Grunt 40 | . 4 . . 4 3 7 . . 1 2 . 6 . . 1 6 . . 2 . 4 . Brawler 3 | . . . . . . 2 . . 1 . . . . . . . . . . . . . Duelist 2 | . . . . 1 1 . . . . . . . . . . . . . . . . . Sentry 28 | . . . . . 2 9 . . 1 1 1 1 . 1 1 3 . 4 . 1 3 . Specialist 1 | . . . . . . . . . . . 1 . . . . . . . . . . . Hunter 7 | . . . . . . 1 . . . . . 2 . 2 . . . . 1 1 . . Programmer 10 | . . . . . . . . . . 2 . . . . 2 . 3 . 1 2 . . Cetus Guard 1 | . . . . . . . . . . . . . . . . . 1 . . . . . Best Kill Streak 10 | 3 8 4 . 4 4 7 1 . 6 7 1 10 . 3 3 3 3 1 5 2 7 1 Combat Bots Only 10 | . 6 2 . 3 2 4 1 . 6 4 1 10 . 3 2 3 3 1 4 2 6 . Max Kills in Single Turn 4 | 1 3 1 . 4 1 1 1 . 1 3 1 1 . 1 1 1 1 1 1 1 1 1 Gunslinging . | . . . . . . . . . . . . . . . . . . . . . . . Exploded 3 | . 2 1 . 3 . . . . . 3 . . . . . . . . . . . . Melee 1 | . . . . 1 1 1 1 . 1 1 . 1 . 1 1 1 1 1 1 1 1 . Uniques/NPCs Destroyed . | . . . . . . . . . . . . . . . . . . . . . . . Combat | -11 -10 -10 -10 -9 -8 -8 -8 -6 -6 -5 -5 -5 -5 -4 -4 -4 -4 -4 -4 -4 -3 -3 -------- Run | Scr Mat Min Exi Min Mat Sto Rec Fac DSF Fac Upp Upp Zhi Pro Fac Ext Cet Arc Hub Gar Res Tes Damage Taken 7217 | . 146 54 . 85 63 322 . . 323 191 48 453 . 503 88 209 137 117 627 516 876 2459 Core 2178 | . 23 8 . 29 . 92 . . 133 54 . 103 . 151 14 96 49 14 182 104 149 977 Absorbed by Shields 59 | . . . . . . . . . . . . . . . . 7 19 . 8 25 . . Redirected to Shielding 319 | . 1 . . . . . . . . . . . . 23 . . 5 16 110 . . 164 Regen/Repaired (Parts) 231 | . . . . . 36 145 . . . . . . . . . . . . . . 50 . Core Remaining (%) 77 | 100 . . . 76 . . 83 . 84 . . . . 61 . . . . . 60 . . Volleys Fired 54 | 4 11 15 . 2 . 2 . . 7 3 6 3 . . . . . . . . . 1 Largest 2 | 2 2 1 . 1 . 1 . . 2 1 1 1 . . . . . . . . . 1 Hottest 94 | 90 90 45 . 30 . 61 . . 91 30 . . . . . . . . . . . 94 Shots Fired 64 | 8 13 15 . 2 . 2 . . 8 4 6 3 . . . . . . . . . 3 Gun 38 | 8 6 12 . . . 2 . . 7 . . . . . . . . . . . . 3 Cannon . | . . . . . . . . . . . . . . . . . . . . . . . Launcher 16 | . 7 3 . 2 . . . . 1 3 . . . . . . . . . . . . Special 10 | . . . . . . . . . . 1 6 3 . . . . . . . . . . Kinetic 1 | . . . . . . . . . . . . . . . . . . . . . . 1 Thermal 19 | 8 . . . . . 2 . . 7 . . . . . . . . . . . . 2 Explosive 16 | . 7 3 . 2 . . . . 1 3 . . . . . . . . . . . . Electromagnetic 18 | . 6 12 . . . . . . . . . . . . . . . . . . . . Robot Hit Streak 18 | 4 12 16 . . . . . . 18 8 14 17 . . . . . . . . . . Robot Miss Streak 1 | 1 1 1 . . . . . . 1 . . . . . . . . . . . . 1 Penetration Max . | . . . . . . . . . . . . . . . . . . . . . . . Secondary Targets . | . . . . . . . . . . . . . . . . . . . . . . . Shots Hit Robots 438 | 5 11 14 . 12 24 56 1 . 34 25 6 23 . 25 22 41 19 12 24 14 62 8 Core Hits 211 | 4 17 11 . 9 10 25 . . 15 14 . 12 . 10 8 20 6 8 12 5 24 1 Critical Kills . | . . . . . . . . . . . . . . . . . . . . . . . Critical Parts Destroyed . | . . . . . . . . . . . . . . . . . . . . . . . Critical Strikes 46 | . . . . . . 2 . . 3 3 . 3 . 2 2 9 3 2 2 4 11 . Burn 2 | . . . . . . . . . 2 . . . . . . . . . . . . . Sever 44 | . . . . . . 2 . . 1 3 . 3 . 2 2 9 3 2 2 4 11 . Melee Attacks 411 | . . . . 12 24 59 1 . 27 22 1 21 . 25 22 42 19 12 27 16 69 12 Impact . | . . . . . . . . . . . . . . . . . . . . . . . Slashing 405 | . . . . 12 24 59 1 . 27 22 1 21 . 25 22 41 19 12 27 16 69 7 Piercing . | . . . . . . . . . . . . . . . . . . . . . . . Sneak Attacks 35 | . . . . 1 3 8 . . 1 2 . . . 1 3 2 . . 3 . 6 5 Combat Hostiles 8 | . . . . . . 2 . . . . . . . 1 . . . . . . . 5 Follow-up Attacks 33 | . . . . . . . . . . . . . . . 1 7 1 1 2 4 16 1 Damage Inflicted 23515 | 55 786 373 . 1025 1395 3123 73 . 1433 1579 . 1005 . 1270 1252 2367 990 627 1497 742 3748 175 Guns 474 | 55 92 209 . . . . . . 118 . . . . . . . . . . . . . Cannons . | . . . . . . . . . . . . . . . . . . . . . . . Explosions 1580 | . 682 158 . 452 . . . . . 288 . . . . . . . . . . . . Melee 21438 | . . . . 573 1395 3123 73 . 1315 1291 . 1005 . 1270 1252 2367 990 627 1497 742 3748 170 Ramming 23 | . 12 6 . . . . . . . . . . . . . . . . . . . 5 Kinetic . | . . . . . . . . . . . . . . . . . . . . . . . Thermal 325 | 55 . . . 152 . . . . 118 . . . . . . . . . . . . . Explosive 1428 | . 682 158 . 300 . . . . . 288 . . . . . . . . . . . . Electromagnetic 301 | . 92 209 . . . . . . . . . . . . . . . . . . . . Impact . | . . . . . . . . . . . . . . . . . . . . . . . Slashing 21438 | . . . . 573 1395 3123 73 . 1315 1291 . 1005 . 1270 1252 2367 990 627 1497 742 3748 170 Piercing . | . . . . . . . . . . . . . . . . . . . . . . . Highest Corruption 10 | . . . . . . 1 1 . 1 2 2 2 2 2 . . 1 1 1 1 5 10 Average Corruption 1 | . . . . . . 1 1 . 1 2 2 2 2 2 . . 1 1 1 1 1 5 Corruption Purged 1 | . . . . . . . . . . . . . . . . . . . . . . 1 Corruption Blocked . | . . . . . . . . . . . . . . . . . . . . . . . Effects 36 | . . . . . . 6 . . . 3 6 3 . 2 . . 1 1 3 . 4 7 Message Errors 2 | . . . . . . . . . . . 1 . . . . . . 1 . . . . Matter Fused 9 | . . . . . . 2 . . . 1 . 1 . . . . 1 . 1 . 1 2 Heat Flow Errors 3 | . . . . . . . . . . . 1 . . . . . . . . . 2 . Energy Discharges 9 | . . . . . . 2 . . . 1 3 1 . 1 . . . . 1 . . . Parts Rejected 2 | . . . . . . . . . . . . . . . . . . . 1 . . 1 Data Loss (minor) 5 | . . . . . . . . . . . 1 1 . 1 . . . . . . 1 1 Data Loss (major) 2 | . . . . . . 1 . . . . . . . . . . . . . . . 1 Misfires 3 | . . . . . . . . . . 1 . . . . . . . . . . . 2 Alerts 1 | . . . . . . 1 . . . . . . . . . . . . . . . . Overload Shots . | . . . . . . . . . . . . . . . . . . . . . . . Overflow Damage 1665 | . 15 . . 129 231 300 33 . 42 85 . . . 38 146 98 72 . 109 4 348 15 Projectiles . | . . . . . . . . . . . . . . . . . . . . . . . Explosions 144 | . 15 . . 73 . . . . . 56 . . . . . . . . . . . . Melee 1521 | . . . . 56 231 300 33 . 42 29 . . . 38 146 98 72 . 109 4 348 15 Knockbacks . | . . . . . . . . . . . . . . . . . . . . . . . Impact . | . . . . . . . . . . . . . . . . . . . . . . . Kinetic . | . . . . . . . . . . . . . . . . . . . . . . . Secondary . | . . . . . . . . . . . . . . . . . . . . . . . Self-Inflicted Damage 130 | . 48 27 . . . . . . 20 33 . . . . . . . . . . . 2 Shots 4 | . 1 1 . . . . . . 1 1 . . . . . . . . . . . . Rammed 3 | . 1 1 . . . . . . . . . . . . . . . . . . . 1 Targets Rammed 3 | . 1 1 . . . . . . . . . . . . . . . . . . . 1 Kicked . | . . . . . . . . . . . . . . . . . . . . . . . Crushed . | . . . . . . . . . . . . . . . . . . . . . . . Highest Temperature 64 | 60 30 12 . 8 11 64 28 . . . 55 . . . . . . . . . . . Average Temperature 18 | 25 13 6 . 8 6 15 13 . . . 49 . . . . . . . . . . . Received Heat Transfer 1555 | . 72 . . 72 63 144 . . 69 9 9 153 . 12 18 48 12 18 102 103 171 480 Siege Activations . | . . . . . . . . . . . . . . . . . . . . . . . Robots Corrupted . | . . . . . . . . . . . . . . . . . . . . . . . Combat Hostiles . | . . . . . . . . . . . . . . . . . . . . . . . Parts Fried 1 | . 1 . . . . . . . . . . . . . . . . . . . . . Impact Corruptions . | . . . . . . . . . . . . . . . . . . . . . . . Robots Melted . | . . . . . . . . . . . . . . . . . . . . . . . Combat Hostiles . | . . . . . . . . . . . . . . . . . . . . . . . Parts Melted 1 | 1 . . . . . . . . . . . . . . . . . . . . . . Heat Transferred 706 | 149 . . . 150 . . . . 407 . . . . . . . . . . . . . Parts Sabotaged 3 | . . . . . . . . . . . . . . . . . . . . . . 3 Parts Stolen . | . . . . . . . . . . . . . . . . . . . . . . . Parts Stripped . | . . . . . . . . . . . . . . . . . . . . . . . Power Chain Reactions . | . . . . . . . . . . . . . . . . . . . . . . . Missiles Intercepted . | . . . . . . . . . . . . . . . . . . . . . . . Alert | -11 -10 -10 -10 -9 -8 -8 -8 -6 -6 -5 -5 -5 -5 -4 -4 -4 -4 -4 -4 -4 -3 -3 ------- Run | Scr Mat Min Exi Min Mat Sto Rec Fac DSF Fac Upp Upp Zhi Pro Fac Ext Cet Arc Hub Gar Res Tes Peak Influence 1902 | 15 309 203 . 202 337 457 129 638 642 478 . . . . 342 301 377 225 340 227 315 1902 Initial 638 | . 7 . . . 55 11 101 638 343 250 . . . . 91 123 63 105 54 72 91 82 Average 239 | 6 111 94 . 82 158 207 108 638 483 257 . . . . 190 149 244 193 176 148 137 1676 Maximum Alert Level 5 | . 1 1 . 1 1 2 . 2 2 2 . . . . 1 1 1 1 1 1 1 5 Low Security (%) 61 | 100 85 82 . 92 81 40 100 . . 25 . . . . 50 81 32 47 69 73 72 . Level 1 29 | . 14 17 . 7 18 53 . . 17 52 . . . . 49 18 67 52 30 26 27 . Level 2 4 | . . . . . . 5 . 100 82 21 . . . . . . . . . . . . Level 3 . | . . . . . . . . . . . . . . . . . . . . . . . Level 4 . | . . . . . . . . . . . . . . . . . . . . . . . Level 5 . | . . . . . . . . . . . . . . . . . . . . . . . High Security . | . . . . . . . . . . . . . . . . . . . . . . . Max Security 4 | . . . . . . . . . . . . . . . . . . . . . . 99 Sterilizations 1 | . . . . . . . . . 1 . . . . . . . . . . . . . Squads Dispatched 33 | . 1 . . . . 4 . 1 3 4 . . . . 2 . . . 2 . 3 13 Investigation 6 | . 1 . . . . 1 . 1 . 2 . . . . . . . . . . 1 . Extermination 1 | . . . . . . . . . . . . . . . . . . . . . 1 . Reinforcement 10 | . . . . . . . . . 3 2 . . . . 2 . . . 2 . 1 . Assault 13 | . . . . . . . . . . . . . . . . . . . . . . 13 Garrison 3 | . . . . . . 3 . . . . . . . . . . . . . . . . Intercept . | . . . . . . . . . . . . . . . . . . . . . . . Searches Triggered . | . . . . . . . . . . . . . . . . . . . . . . . Construction Impeded . | . . . . . . . . . . . . . . . . . . . . . . . Haulers Reinforced 5 | . . . . . . . . . . 2 . . . . 1 . . . 1 . 1 . Active Scanning Responses . | . . . . . . . . . . . . . . . . . . . . . . . Cargo Convoy Interrupts . | . . . . . . . . . . . . . . . . . . . . . . . Stealth | -11 -10 -10 -10 -9 -8 -8 -8 -6 -6 -5 -5 -5 -5 -4 -4 -4 -4 -4 -4 -4 -3 -3 --------- Run | Scr Mat Min Exi Min Mat Sto Rec Fac DSF Fac Upp Upp Zhi Pro Fac Ext Cet Arc Hub Gar Res Tes Distress Signals 11 | . 1 . . . . . . . . . . . . . 1 1 2 . 3 . 2 1 Communications Jammed 58 | . . . . . . . . . . . . . . . . . 58 . . . . . Distress Signals 58 | . . . . . . . . . . . . . . . . . 58 . . . . . Times Spotted 313 | . 8 4 . 9 11 23 3 . 15 14 3 15 . 10 9 19 11 4 27 8 20 100 Peak Tracking Total 51 | . 2 2 . 3 3 4 4 . 6 4 1 9 . 3 7 6 5 2 9 5 5 51 Tactical Retreats 27 | . . . . 1 . 2 . . 2 1 1 1 . . 3 3 2 . 4 . . 7 Traps | -11 -10 -10 -10 -9 -8 -8 -8 -6 -6 -5 -5 -5 -5 -4 -4 -4 -4 -4 -4 -4 -3 -3 ------- Run | Scr Mat Min Exi Min Mat Sto Rec Fac DSF Fac Upp Upp Zhi Pro Fac Ext Cet Arc Hub Gar Res Tes Traps Triggered 26 | . 1 . . . . 3 . 1 . . . . . . 1 6 . . 8 3 1 2 Indirectly . | . . . . . . . . . . . . . . . . . . . . . . . Trap Hack Attempts . | . . . . . . . . . . . . . . . . . . . . . . . Triggered . | . . . . . . . . . . . . . . . . . . . . . . . Disarmed . | . . . . . . . . . . . . . . . . . . . . . . . Reprogrammed 6 | . . . . . . 6 . . . . . . . . . . . . . . . . Reused 5 | . . . . . . 5 . . . . . . . . . . . . . . . . Traps Extracted . | . . . . . . . . . . . . . . . . . . . . . . . Installed . | . . . . . . . . . . . . . . . . . . . . . . . Triggered 5 | . . . . . . 5 . . . . . . . . . . . . . . . . Machines | -11 -10 -10 -10 -9 -8 -8 -8 -6 -6 -5 -5 -5 -5 -4 -4 -4 -4 -4 -4 -4 -3 -3 ---------- Run | Scr Mat Min Exi Min Mat Sto Rec Fac DSF Fac Upp Upp Zhi Pro Fac Ext Cet Arc Hub Gar Res Tes Machines Disabled 19 | . 4 . . 5 . 3 . . . 1 1 1 . . . . 1 . . 1 . 2 Max in Single Turn 4 | . 1 . . 4 . 1 . . . 1 1 1 . . . . . . . 1 . 1 Garrison Relay 1 | . . . . . . . . . . . . . . . . . . . . 1 . . Machines Sabotaged . | . . . . . . . . . . . . . . . . . . . . . . . Garrisons Compromised . | . . . . . . . . . . . . . . . . . . . . . . . Overloaded Fab Kills . | . . . . . . . . . . . . . . . . . . . . . . . Hacking | -11 -10 -10 -10 -9 -8 -8 -8 -6 -6 -5 -5 -5 -5 -4 -4 -4 -4 -4 -4 -4 -3 -3 --------- Run | Scr Mat Min Exi Min Mat Sto Rec Fac DSF Fac Upp Upp Zhi Pro Fac Ext Cet Arc Hub Gar Res Tes Machines Accessed 79 | . 6 . 4 . 8 13 4 1 . 8 . 1 6 . 1 13 2 1 5 . 6 . Terminals 47 | . 5 . . . 5 9 2 1 . 4 . . . . 1 12 2 . 4 . 2 . Fabricators 1 | . . . . . . . . . . 1 . . . . . . . . . . . . Repair Stations 4 | . . . . . 1 1 . . . . . . . . . 1 . . . . 1 . Recycling Units 7 | . 1 . . . 1 2 2 . . . . . . . . . . . . . 1 . Scanalyzers 4 | . . . . . 1 . . . . 2 . . . . . . . . . . 1 . Garrison Access 4 | . . . . . . 1 . . . 1 . . . . . . . . 1 . 1 . Total Hacks 323 | . 30 . 49 . 24 43 12 1 . 50 . 1 19 . 2 24 5 25 19 . 19 . Successful 269 | . 21 . 49 . 19 37 12 1 . 36 . 1 19 . 1 18 5 25 14 . 11 . Failed 54 | . 9 . . . 5 6 . . . 14 . . . . 1 6 . . 5 . 8 . Catastrophic 1 | . . . . . 1 . . . . . . . . . . . . . . . . . Database Lockouts . | . . . . . . . . . . . . . . . . . . . . . . . Manual 134 | . 23 . 2 . 13 28 7 . . 30 1 . . . . 6 2 . 12 . 10 . Terminals 164 | . 26 . . . 13 29 5 1 . 35 . . . . 2 23 5 . 15 . 10 . Fabricators 4 | . . . . . . . . . . 4 . . . . . . . . . . . . Repair Stations 9 | . . . . . 2 4 . . . . . . . . . 1 . . . . 2 . Recycling Units 26 | . 4 . . . 4 8 7 . . . . . . . . . . . . . 3 . Scanalyzers 14 | . . . . . 5 . . . . 8 . . . . . . . . . . 1 . Garrison Access 12 | . . . . . . 2 . . . 3 . . . . . . . . 4 . 3 . Terminal Hacks 170 | . 11 . 49 . 3 16 3 1 . 14 . 1 19 . 1 14 5 25 6 . 2 . Record 86 | . . . 49 . . . . . . . . . 7 . . . 4 25 1 . . . Part Schematic 15 | . 1 . . . . 3 3 . . 2 . . 4 . . 2 . . . . . . Robot Schematic 1 | . . . . . . . . . . . . . . . . 1 . . . . . . Robot Analysis 5 | . . . . . 1 . . . . . . . 4 . . . . . . . . . Prototype ID Bank 12 | . 2 . . . . 1 . . . 2 . . 4 . . 2 . . . . 1 . Open Door 13 | . . . . . . 4 . . . . . 1 . . . 7 1 . . . . . Open DSF 2 | . . . . . . . . 1 . . . . . . 1 . . . . . . . Branch Access Points 8 | . 1 . . . . 1 . . . 2 . . . . . 2 . . 1 . 1 . Terminal Index 6 | . 1 . . . 1 1 . . . 1 . . . . . . . . 2 . . . Scanalyzer Index 1 | . . . . . . . . . . . . . . . . . . . 1 . . . Alert Level 6 | . 1 . . . 1 2 . . . 2 . . . . . . . . . . . . Unreport Threat 3 | . 1 . . . . . . . . 2 . . . . . . . . . . . . Reprogram Traps 1 | . . . . . . 1 . . . . . . . . . . . . . . . . Dispatch Records 1 | . . . . . . . . . . 1 . . . . . . . . . . . . Patrol Status 1 | . . . . . . . . . . . . . . . . . . . 1 . . . Transport Status 2 | . 1 . . . . 1 . . . . . . . . . . . . . . . . Recall Reinforcements 1 | . . . . . . . . . . 1 . . . . . . . . . . . . Hauler Manifests 4 | . 2 . . . . 1 . . . 1 . . . . . . . . . . . . Zone Layout 2 | . 1 . . . . 1 . . . . . . . . . . . . . . . . Fabricator Hacks 3 | . . . . . . . . . . 3 . . . . . . . . . . . . Network Status 1 | . . . . . . . . . . 1 . . . . . . . . . . . . Load Schematic 1 | . . . . . . . . . . 1 . . . . . . . . . . . . Build 1 | . . . . . . . . . . 1 . . . . . . . . . . . . Repair Station Hacks 8 | . . . . . 2 4 . . . . . . . . . . . . . . 2 . Scan Component 4 | . . . . . 1 2 . . . . . . . . . . . . . . 1 . Repair 4 | . . . . . 1 2 . . . . . . . . . . . . . . 1 . Recycling Unit Hacks 6 | . . . . . 1 3 2 . . . . . . . . . . . . . . . Retrieve Components 6 | . . . . . 1 3 2 . . . . . . . . . . . . . . . Scanalyzer 13 | . . . . . 5 . . . . 8 . . . . . . . . . . . . Insert Component 6 | . . . . . 2 . . . . 4 . . . . . . . . . . . . Analyze 7 | . . . . . 3 . . . . 4 . . . . . . . . . . . . Garrison Access Hacks 2 | . . . . . . . . . . . . . . . . . . . 1 . 1 . Unlock Access 1 | . . . . . . . . . . . . . . . . . . . 1 . . . Coupler Status 1 | . . . . . . . . . . . . . . . . . . . . . 1 . Unauthorized Hacks 67 | . 10 . . . 8 14 7 . . 11 . . . . . 4 . . 7 . 6 . Terminals 45 | . 9 . . . 6 7 2 . . 8 . . . . . 4 . . 5 . 4 . Track 7 | . 3 . . . . 1 . . . 1 . . . . . . . . 1 . 1 . Assimilate 2 | . . . . . . . . . . 2 . . . . . . . . . . . . Botnet 28 | . 5 . . . 5 5 2 . . 3 . . . . . 3 . . 3 . 2 . Disrupt 2 | . 1 . . . . 1 . . . . . . . . . . . . . . . . Operators 6 | . . . . . 1 . . . . 2 . . . . . 1 . . 1 . 1 . Fabricators 1 | . . . . . . . . . . 1 . . . . . . . . . . . . Prioritize 1 | . . . . . . . . . . 1 . . . . . . . . . . . . Repair Stations . | . . . . . . . . . . . . . . . . . . . . . . . Recycling Units 13 | . 1 . . . 2 5 5 . . . . . . . . . . . . . . . Monitor 4 | . . . . . . 2 2 . . . . . . . . . . . . . . . Reject 6 | . 1 . . . 1 2 2 . . . . . . . . . . . . . . . Recyclers 3 | . . . . . 1 1 1 . . . . . . . . . . . . . . . Scanalyzers . | . . . . . . . . . . . . . . . . . . . . . . . Garrison Access 8 | . . . . . . 2 . . . 2 . . . . . . . . 2 . 2 . Decoy 3 | . . . . . . 1 . . . 1 . . . . . . . . 1 . . . Redirect 1 | . . . . . . . . . . . . . . . . . . . . . 1 . Reprogram 4 | . . . . . . 1 . . . 1 . . . . . . . . 1 . 1 . Data Cores Recovered 1 | . . . . . . . . . . . . . . . . . . . . . 1 . Used 1 | . . . . . . . . . . . . . . . . . . . . . 1 . Hacking Detections 51 | . 6 . . . 8 9 4 . . 7 . . . . . 6 2 . 4 . 5 . Full Trace Events 2 | . 1 . . . . . . . . 1 . . . . . . . . . . . . Feedback Events . | . . . . . . . . . . . . . . . . . . . . . . . Feedback Blocked . | . . . . . . . . . . . . . . . . . . . . . . . Robot Schematics Acquired 1 | . . . . . . . . . . . . . . . . 1 . . . . . . Robots Built . | . . . . . . . . . . . . . . . . . . . . . . . Authchips . | . . . . . . . . . . . . . . . . . . . . . . . Time . | . . . . . . . . . . . . . . . . . . . . . . . Total Robot Build Rating . | . . . . . . . . . . . . . . . . . . . . . . . Part Schematics Acquired 20 | . 1 . . . 2 2 3 . . 6 . . 4 . . 2 . . . . . . Parts Built 1 | . . . . . . . . . . 1 . . . . . . . . . . . . Authchips . | . . . . . . . . . . . . . . . . . . . . . . . Time 58 | . . . . . . . . . . 58 . . . . . . . . . . . . Total Part Build Rating 7 | . . . . . . . . . . 7 . . . . . . . . . . . . Parts Repaired 4 | . . . . . 1 2 . . . . . . . . . . . . . . 1 . Time 136 | . . . . . 32 86 . . . . . . . . . . . . . . 18 . Parts Recycled . | . . . . . . . . . . . . . . . . . . . . . . . Recycled Matter . | . . . . . . . . . . . . . . . . . . . . . . . Retrieved Matter . | . . . . . . . . . . . . . . . . . . . . . . . Retrieved Components 34 | . . . . . 9 19 6 . . . . . . . . . . . . . . . Parts Scanalyzed 6 | . . . . . 2 . . . . 4 . . . . . . . . . . . . Part Schematics Acquired 6 | . . . . . 2 . . . . 4 . . . . . . . . . . . . Parts Damaged . | . . . . . . . . . . . . . . . . . . . . . . . Bothacking | -11 -10 -10 -10 -9 -8 -8 -8 -6 -6 -5 -5 -5 -5 -4 -4 -4 -4 -4 -4 -4 -3 -3 ------------ Run | Scr Mat Min Exi Min Mat Sto Rec Fac DSF Fac Upp Upp Zhi Pro Fac Ext Cet Arc Hub Gar Res Tes Used RIF Installer . | . . . . . . . . . . . . . . . . . . . . . . . Robots Hacked 2 | . . . . . . . . . . 1 . . . . . 1 . . . . . . Non-combat 2 | . . . . . . . . . . 1 . . . . . 1 . . . . . . Combat . | . . . . . . . . . . . . . . . . . . . . . . . Robot Hacks Applied 2 | . . . . . . . . . . 1 . . . . . 1 . . . . . . parse_system 1 | . . . . . . . . . . . . . . . . 1 . . . . . . find_recycling 1 | . . . . . . . . . . 1 . . . . . . . . . . . . Relay Couplers Released 9 | . . . . . . . . . . . . . . . . . . . . 5 4 . Machine Destruction 5 | . . . . . . . . . . . . . . . . . . . . 5 . . Programmers 4 | . . . . . . . . . . . . . . . . . . . . . 4 . Fabnet Peak Effective % . | . . . . . . . . . . . . . . . . . . . . . . . Robots Rewired . | . . . . . . . . . . . . . . . . . . . . . . . Allies Hacked 1 | . . . . . . . . . . . . . . . . . 1 . . . . . Hacks Repelled . | . . . . . . . . . . . . . . . . . . . . . . . Allies | -11 -10 -10 -10 -9 -8 -8 -8 -6 -6 -5 -5 -5 -5 -4 -4 -4 -4 -4 -4 -4 -3 -3 -------- Run | Scr Mat Min Exi Min Mat Sto Rec Fac DSF Fac Upp Upp Zhi Pro Fac Ext Cet Arc Hub Gar Res Tes Total Allies 19 | . . . . 3 . 1 . . . 4 . . . . . 10 . . . . 1 . Largest Group 7 | . . . . 3 . 1 . . . 3 . . . . . 7 2 1 . . 1 . Highest-Rated Group 290 | . . . . 40 . 15 . . . 87 . . . . . 290 188 159 . . 83 . Highest-Rated Ally 159 | . . . . 16 . 15 . . . 29 . . . . . 159 159 159 . . 83 . Total Orders 2 | . . . . 1 . 1 . . . . . . . . . . . . . . . . ROAM 1 | . . . . 1 . . . . . . . . . . . . . . . . . . EXPLORE 1 | . . . . . . 1 . . . . . . . . . . . . . . . . Ally Attacks 91 | . . . . 15 . 6 . . . 19 . . . . . 15 30 . . . 6 . Total Damage 2342 | . . . . 152 . 87 . . . 285 . . . . . 521 1144 . . . 153 . Kills 16 | . . . . 2 . 2 . . . 2 . . . . . 2 8 . . . . . Allies Corrupted 1 | . . . . . . . . . . . . . . . . . 1 . . . . . Allies Melted . | . . . . . . . . . . . . . . . . . . . . . . . Intel | -11 -10 -10 -10 -9 -8 -8 -8 -6 -6 -5 -5 -5 -5 -4 -4 -4 -4 -4 -4 -4 -3 -3 ------- Run | Scr Mat Min Exi Min Mat Sto Rec Fac DSF Fac Upp Upp Zhi Pro Fac Ext Cet Arc Hub Gar Res Tes Robot Analysis Total 5 | . . . . . 1 . . . . . . . 4 . . . . . . . . . Derelict Logs Recovered 5 | . . . . . . . . . . . 1 3 . 1 . . . . . . . . Drone Launches 2 | . . . . . . 2 . . . . . . . . . . . . . . . . Drone Recoveries 1 | . . . . . . 1 . . . . . . . . . . . . . . . . Exploration | -11 -10 -10 -10 -9 -8 -8 -8 -6 -6 -5 -5 -5 -5 -4 -4 -4 -4 -4 -4 -4 -3 -3 ------------- Run | Scr Mat Min Exi Min Mat Sto Rec Fac DSF Fac Upp Upp Zhi Pro Fac Ext Cet Arc Hub Gar Res Tes Turns Passed 8853 | 122 470 610 781 683 407 1053 30 22 181 498 412 323 73 229 267 559 241 182 504 205 667 334 Spaces Moved 12145 | 71 403 538 762 511 598 1238 107 74 163 793 752 871 200 651 537 792 412 229 657 273 880 633 Core 33 | 6 . . . . . 1 . . . . . . 1 . . . . . . . . 25 Treads . | . . . . . . . . . . . . . . . . . . . . . . . Legs 27 | 27 . . . . . . . . . . . . . . . . . . . . . . Wheels 2252 | 38 403 538 762 511 . . . . . . . . . . . . . . . . . . Hover . | . . . . . . . . . . . . . . . . . . . . . . . Flight 9833 | . . . . . 598 1237 107 74 163 793 752 871 199 651 537 792 412 229 657 273 880 608 Fastest Speed 24 | 50 80 100 100 100 28 26 26 24 24 24 24 24 24 24 24 34 34 34 31 34 25 29 Average Speed 43 | 111 91 100 100 100 28 26 26 24 24 24 24 24 26 24 32 34 34 34 32 37 42 36 Slowest Speed 400 | 250 100 100 100 100 31 300 26 24 25 94 94 25 400 30 34 34 117 34 37 117 120 300 Overloaded Moves . | . . . . . . . . . . . . . . . . . . . . . . . Propulsion Burnouts . | . . . . . . . . . . . . . . . . . . . . . . . Robots Hopped 61 | . . . . . . 7 . . . 1 5 1 . . 1 . . . 13 . . 33 Cave-ins Triggered . | . . . . . . . . . . . . . . . . . . . . . . . Teleports 1 | . . . . . . . . . . . . . 1 . . . . . . . . . Exploration Rate (%) 59 | 4 68 86 94 97 39 96 32 2 88 16 72 82 62 74 12 74 92 100 42 39 24 75 Regions Visited 22 Branch Regions 14 Pre-discovered Areas 5 | . . . 1 1 . . . . . . . . 3 . . . . . . . . . Known Exits Taken 20 | 1 1 1 1 1 1 1 1 1 . 1 1 1 1 1 1 1 1 1 1 . 1 . Unknown Exits Taken . | . . . . . . . . . . . . . . . . . . . . . . . Scrap Searched 7 | . . . . . . . . . . . 1 3 . 3 . . . . . . . . Spaces Dug . | . . . . . . . . . . . . . . . . . . . . . . . Terrain Destroyed 95 | . 31 28 . 19 . . . . 4 13 . . . . . . . . . . . . Melee . | . . . . . . . . . . . . . . . . . . . . . . . Projectile . | . . . . . . . . . . . . . . . . . . . . . . . AOE 95 | . 31 28 . 19 . . . . 4 13 . . . . . . . . . . . . Terrain Rammed . | . . . . . . . . . . . . . . . . . . . . . . . Walls Destroyed . | . . . . . . . . . . . . . . . . . . . . . . . Machines Disabled . | . . . . . . . . . . . . . . . . . . . . . . . Actions | -11 -10 -10 -10 -9 -8 -8 -8 -6 -6 -5 -5 -5 -5 -4 -4 -4 -4 -4 -4 -4 -3 -3 --------- Run | Scr Mat Min Exi Min Mat Sto Rec Fac DSF Fac Upp Upp Zhi Pro Fac Ext Cet Arc Hub Gar Res Tes Total 15187 | 103 494 594 781 669 808 1894 107 76 266 1068 964 952 217 698 604 1039 492 320 901 358 1094 688 Wait 1962 | . 42 38 5 141 164 560 . . 59 217 203 50 4 3 14 95 57 78 74 18 122 18 Move 12019 | 70 402 537 761 510 597 1223 106 73 162 790 741 868 199 650 534 791 411 228 631 272 879 584 Hop 43 | . . . . . . 7 . . . 1 5 1 . . 1 . . . 12 . . 16 Pick Up 85 | 13 8 2 3 1 6 9 . . 1 4 1 3 2 1 2 2 . 1 7 3 10 6 Fast Attach 134 | 8 5 1 6 1 3 11 . 1 3 11 2 2 6 5 10 9 3 1 5 2 16 23 Attach 47 | 1 4 . . . 3 1 . 2 2 1 . 3 1 4 1 1 . 1 5 2 5 10 Detach 17 | 1 1 . . . . 2 . . . . . . . 3 1 1 . . 1 . 1 6 Swap 40 | 2 6 . . . 6 5 . . 3 8 . . 1 3 . 1 . . 1 . 3 1 Drop 125 | 4 14 . 6 2 5 15 . . 2 11 5 1 4 4 9 10 3 . 6 . 11 13 Fire 54 | 4 11 15 . 2 . 2 . . 7 3 6 3 . . . . . . . . . 1 Melee 367 | . . . . 12 24 59 1 . 27 22 1 21 . 25 21 34 18 11 24 11 47 9 Ram 3 | . 1 1 . . . . . . . . . . . . . . . . . . . 1 Kick . | . . . . . . . . . . . . . . . . . . . . . . . Crush . | . . . . . . . . . . . . . . . . . . . . . . . Escape Stasis 291 | . . . . . . . . . . . . . . . 11 95 . . 135 50 . . Rewire . | . . . . . . . . . . . . . . . . . . . . . . . Trap . | . . . . . . . . . . . . . . . . . . . . . . . Miscellaneous . | . . . . . . . . . . . . . . . . . . . . . . . Route ------- -11/Scrapyard -10/Materials (discovered 4 exits: *Mat x2 / *Min x2) -10/Mines (discovered 2 exits: *Mat / *Exi) -10/Exiles (discovered 2 exits: *Min x2) -9/Mines (discovered 2 exits: *Mat x2) -8/Materials -8/Storage (discovered 2 exits: *Fac / *Rec) -8/Recycling -6/Factory -6/DSF -5/Factory (discovered 3 exits: *Fac / *Upp x2) -5/Upper Caves -5/Upper Caves (discovered 2 exits: Fac / *Zhi) -5/Zhirov -4/Proximity Caves -4/Factory (discovered 2 exits: *Upp / *Ext) -4/Extension (discovered 2 exits: *Res / *Cet) -4/Cetus (discovered 2 exits: *Res / *Arc) -4/Archives (discovered 3 exits: *Res / *Hub x2) -4/Hub_04(d) (discovered 3 exits: *Res x2 / Gar) -4/Garrison -3/Research (discovered 2 exits: *Tes x2) -3/Testing History --------- Turn | Location | Event 37 | -11/Scrapyard | Identified exit to Materials 37 | -11/Scrapyard | Discovered exit to Materials (range 14) 123 | -11/Scrapyard | Entered Materials 123 | -10/Materials | Evolved 1 slot: Utility x1 178 | -10/Materials | Identified exit to Mines 323 | -10/Materials | Build established: Hacker-Mutant 364 | -10/Materials | Identified exit to Materials 364 | -10/Materials | Discovered exit to Materials (range 9) 442 | -10/Materials | Discovered exit to Materials (range 10) 593 | -10/Materials | Entered Mines 636 | -10/Mines | Discovered exit to Materials (range 8) 675 | -10/Mines | Build established: Scavenger-Mutant 977 | -10/Mines | Deemed a non-threat by the Exiles lab entrance 977 | -10/Mines | Identified exit to Exiles 977 | -10/Mines | Discovered exit to Exiles (range 6) 1039 | -10/Mines | Found a hidden stash of uninstalled traps 1203 | -10/Mines | Entered Exiles 1227 | -10/Exiles | Met 8R-AWN 1244 | -10/Exiles | Met EX-HEX 1319 | -10/Exiles | Met EX-DEC 1355 | -10/Exiles | Learned location of Zion (-7) 1390 | -10/Exiles | Met EX-BIN 1419 | -10/Exiles | Aligned with FarCom system 1420 | -10/Exiles | Given EX-Vault access code 1462 | -10/Exiles | Opened EX-Vault 1469 | -10/Exiles | Found Prototype Storage 1469 | -10/Exiles | Identified Lightpack 2.0 1473 | -10/Exiles | Found Prototype Storage 1473 | -10/Exiles | Identified Superbattery 1480 | -10/Exiles | Found Prototype Slashing Weapon 1480 | -10/Exiles | Identified Longsword +1 1532 | -10/Exiles | Warned to stay clear of 0b10 Research branches 1619 | -10/Exiles | Identified exit to Mines 1619 | -10/Exiles | Discovered exit to Mines (range 14) 1693 | -10/Exiles | Visited The Gauntlet 1864 | -10/Exiles | Discovered exit to Mines (range 14) 1984 | -10/Exiles | Left Exiles lab with Longsword +1 1984 | -10/Exiles | Entered Mines 1985 | -9/Mines | Learned location of Storage (-8) 2039 | -9/Mines | Assisted by bots powering up and referring to "LRC-V3" 2323 | -9/Mines | Identified exit to Materials 2323 | -9/Mines | Discovered exit to Materials (range 11) 2394 | -9/Mines | Discovered exit to Materials (range 12) 2667 | -9/Mines | Entered Materials 2667 | -8/Materials | Evolved 4 slots: Power x1, Propulsion x2, Utility x1 2811 | -8/Materials | Repaired Mni. Grenade Launcher 3063 | -8/Materials | Identified exit to Storage 3063 | -8/Materials | Discovered exit to Storage (range 6) 3074 | -8/Materials | Entered Storage 3122 | -8/Storage | Build established: Hacker-Scout 3169 | -8/Storage | Identified exit to Recycling 3645 | -8/Storage | Identified exit to Factory 3645 | -8/Storage | Discovered exit to Factory (range 16) 3907 | -8/Storage | Garrison activated, responded to threat 4074 | -8/Storage | Repaired Prc. Beam Rifle 4102 | -8/Storage | Repaired Sml. Storage Unit 4126 | -8/Storage | Used back door to open Recycling access 4127 | -8/Storage | Entered Recycling 4139 | -8/Recycling | Spotter reported a threat 4140 | -8/Recycling | Spotter reported a threat 4148 | -8/Recycling | Spotter reported a threat 4149 | -8/Recycling | Spotter reported a threat 4152 | -8/Recycling | Identified exit to Factory 4152 | -8/Recycling | Discovered exit to Factory (range 5) 4157 | -8/Recycling | Entered Factory 4157 | -6/Factory | Evolved 4 slots: Propulsion x1, Utility x3 4179 | -6/Factory | Identified exit to DSF 4179 | -6/Factory | Entered DSF 4182 | -6/DSF | Build established: Hacker-Sprinter 4209 | -6/DSF | Additional patrols routed to DSF 4217 | -6/DSF | Identified exit to Factory 4217 | -6/DSF | Discovered exit to Factory (range 11) 4335 | -6/DSF | Sterilization system engaged 4355 | -6/DSF | Ambient heat levels rising (+10) 4360 | -6/DSF | Entered Factory 4360 | -5/Factory | Evolved 2 slots: Utility x2 4449 | -5/Factory | Identified exit to Upper Caves 4522 | -5/Factory | Fabricated Adv. Actuator Array (x1) 4569 | -5/Factory | Identified exit to Factory 4569 | -5/Factory | Discovered exit to Factory (range 17) 4858 | -5/Factory | Entered Upper Caves 4878 | -5/Upper Caves | Identified exit to Upper Caves 4898 | -5/Upper Caves | Spotted B-75 Beast 5180 | -5/Upper Caves | Acquired the password to a Derelict Tinkerer's latest research 5183 | -5/Upper Caves | Found Prototype Special Weapon 5183 | -5/Upper Caves | Identified Molecular Deconstructor 5198 | -5/Upper Caves | Attracted the attention of an 0b10 checkpoint 5270 | -5/Upper Caves | Entered another Upper Caves area 5390 | -5/Upper Caves | Attracted the attention of an 0b10 base 5468 | -5/Upper Caves | Learned Factory interactive machine intel 5500 | -5/Upper Caves | Destroyed 10 combat bots 5517 | -5/Upper Caves | Learned Factory garrison access intel 5568 | -5/Upper Caves | Encountered a Warlord checkpoint 5589 | -5/Upper Caves | Identified exit to Zhirov 5589 | -5/Upper Caves | Discovered exit to Zhirov (range 17) 5593 | -5/Upper Caves | Entered Zhirov 5593 | -5/Zhirov | Identified exit to Proximity Caves 5593 | -5/Zhirov | Discovered exit to Proximity Caves (range 3) 5598 | -5/Zhirov | Met Zhirov 5604 | -5/Zhirov | Learned location of Quarantine (-2) 5604 | -5/Zhirov | Learned location of Testing (-3) 5604 | -5/Zhirov | Learned location of Command (-1) 5609 | -5/Zhirov | Zhirov requested help retrieving the SGEMP Prototype 5615 | -5/Zhirov | Found Alien Artifact 5615 | -5/Zhirov | Identified Integrated Dissipator 5615 | -5/Zhirov | Installed Integrated Dissipator, increased core heat dissipation (+20) 5626 | -5/Zhirov | Found Alien Artifact 5627 | -5/Zhirov | Identified Transdimensional Reconstructor 5627 | -5/Zhirov | Warped through subspace 5666 | -5/Zhirov | Entered Proximity Caves 5713 | -4/Proximity Caves | Lost 6 parts (2p2n2u) 5847 | -4/Proximity Caves | Spotted B-86 Titan 5882 | -4/Proximity Caves | Learned Research stockpile data 5894 | -4/Proximity Caves | Discovered exit to Factory (range 3) 5895 | -4/Proximity Caves | Attracted the attention of an 0b10 checkpoint 5895 | -4/Proximity Caves | Entered Factory 5895 | -4/Factory | Evolved 2 slots: Utility x1, Weapon x1 5896 | -4/Factory | Loaded intel: 52 interactive machine locations 5897 | -4/Factory | Loaded intel: 3 garrison access locations 5974 | -4/Factory | Identified exit to Upper Caves 5974 | -4/Factory | Discovered exit to Upper Caves (range 5) 6057 | -4/Factory | Found Prototype Slashing Weapon 6057 | -4/Factory | Identified Molecular Scythe 6160 | -4/Factory | Identified exit to Extension 6160 | -4/Factory | Discovered exit to Extension (range 8) 6162 | -4/Factory | Entered Extension 6173 | -4/Extension | Rescued a captive Derelict 6174 | -4/Extension | Rescued a captive Derelict 6194 | -4/Extension | Rescued a captive Derelict 6195 | -4/Extension | Rescued a captive Derelict 6201 | -4/Extension | Build established: Hacker-Scout 6204 | -4/Extension | Identified exit to Cetus 6231 | -4/Extension | Rescued a captive Derelict 6340 | -4/Extension | Rescued a captive Derelict 6341 | -4/Extension | Rescued a captive Derelict 6347 | -4/Extension | Spotted B-86 Titan 6391 | -4/Extension | Spotted B-86 Titan 6551 | -4/Extension | Rescued a captive Derelict 6621 | -4/Extension | Rescued A7 6677 | -4/Extension | Rescued a captive Derelict 6685 | -4/Extension | Identified exit to Research 6685 | -4/Extension | Discovered exit to Research (range 10) 6721 | -4/Extension | Entered Cetus 6721 | -4/Cetus | Accompanied by 2 allies (A7) 6726 | -4/Cetus | Acquired a Cetus Manufacturing Module code from A7 6726 | -4/Cetus | Spotted Cetus Guard 6726 | -4/Cetus | Spotted Cetus Guard 6726 | -4/Cetus | Spotted Cetus Guard 6726 | -4/Cetus | Spotted Cetus Guard 6741 | -4/Cetus | Allies destroyed Cetus Guard 6753 | -4/Cetus | Allies destroyed Cetus Guard 6757 | -4/Cetus | Destroyed Cetus Guard 6758 | -4/Cetus | Allies destroyed Cetus Guard 6797 | -4/Cetus | Cetus Manufacturing Module disabled 6812 | -4/Cetus | Failed to start Cetus Manufacturing Module 6838 | -4/Cetus | Escorted A7 to Cetus Mainframe 6857 | -4/Cetus | Identified exit to Archives 6857 | -4/Cetus | Discovered exit to Archives (range 20) 6868 | -4/Cetus | Spotted Cetus Guard 6868 | -4/Cetus | Spotted Cetus Guard 6935 | -4/Cetus | Discovered exit to Research (range 19) 6939 | -4/Cetus | Met Revision 17 6962 | -4/Cetus | Entered Archives 6962 | -4/Archives | Accompanied by 1 ally (A7) 6967 | -4/Archives | Received a hacking code to weaken MAIN.C 6991 | -4/Archives | Build established: Hacker-Mutant 7102 | -4/Archives | Identified exit to Hub_04(d) 7102 | -4/Archives | Discovered exit to Hub_04(d) (range 20) 7103 | -4/Archives | Unable to access archive contents 7106 | -4/Archives | Unable to access archive contents 7108 | -4/Archives | Discovered exit to Research (range 17) 7110 | -4/Archives | Unable to access archive contents 7111 | -4/Archives | Discovered exit to Hub_04(d) (range 17) 7113 | -4/Archives | Unable to access archive contents 7144 | -4/Archives | Entered Hub_04(d) 7388 | -4/Hub_04(d) | Discovered exit to Research (range 20) 7412 | -4/Hub_04(d) | Found Molecular Scythe 7414 | -4/Hub_04(d) | Found Molecular Scythe 7419 | -4/Hub_04(d) | Found Molecular Scythe 7475 | -4/Hub_04(d) | Discovered exit to Research (range 8) 7477 | -4/Hub_04(d) | Identified exit to Garrison 7645 | -4/Hub_04(d) | Lost 6 parts (1p3n2u) 7648 | -4/Hub_04(d) | Entered Garrison 7698 | -4/Garrison | Spotted B-86 Titan 7727 | -4/Garrison | Garrison Relay disabled 7736 | -4/Garrison | Triggered checkpoint 7791 | -4/Garrison | Triggered checkpoint 7820 | -4/Garrison | Discovered exit to Research (range 10) 7853 | -4/Garrison | Entered Research 7853 | -3/Research | Evolved 2 slots: Propulsion x1, Utility x1 7871 | -3/Research | Lost 4 parts (1p1n1u1w) 8217 | -3/Research | Identified exit to Testing 8262 | -3/Research | Repaired Mic. Fission Core 8332 | -3/Research | Spotted B-86 Titan 8520 | -3/Research | Entered Testing 8521 | -3/Testing | Maximum security lockdown engaged 8550 | -3/Testing | Lost 8 parts (2p3n2u1w) 8607 | -3/Testing | Found Prototype Processor 8607 | -3/Testing | Identified Exp. Melee Analysis Suite 8647 | -3/Testing | Build established: Hacker-Sprinter 8704 | -3/Testing | Spotted Striker 8704 | -3/Testing | Spotted Striker 8706 | -3/Testing | Spotted Alpha 7 8713 | -3/Testing | Stole the SGEMP Prototype 8737 | -3/Testing | Found Prototype Processor 8737 | -3/Testing | Identified Spectral Analyzer 8744 | -3/Testing | Spotted Executioner 8755 | -3/Testing | Found Prototype Processor 8755 | -3/Testing | Identified Exp. Terrain Scan Processor 8760 | -3/Testing | Found Prototype Hackware 8760 | -3/Testing | Identified Exp. System Shield 8775 | -3/Testing | Spotted PY-A8G39DKQM4 8826 | -3/Testing | Core integrity fell below 50% 8852 | -3/Testing | Spotted Investigator 8853 | -3/Testing | Core integrity fell below 20% 8853 | -3/Testing | System corruption reached 10% 8854 | -3/Testing | Self-destructed Last Messages --------------- 08837_ Critical hit (Burn: +37). 08839_ Fabricator unresponsive. 08839_ P-80 Master resets Striker, system corruption cleaned. 08841_ Penetrated by Slug. 08841_ Exp. Melee Analysis Suite destroyed. 08841_ Slug penetrates Wall. 08842_ Gravity Neutralizer destroyed. 08844_ Critical hit (Impale). 08845_ Exp. System Shield destroyed. 08846_ W-44 Eye distress signal alerts nearby ally. 08848_ Antimatter Reactor destroyed. 08848_ Hacking Suite destroyed. 08852_ C-30 ARC bursts open, deploying its payload. 08852_ G-73 Enforcer unfolds itself. 08852_ G-67 Veteran unfolds itself. 08852_ E-15 Imp unfolds itself. 08852_ Investigator unfolds itself. 08852_ Investigator: "PRIMARY THREAT IDENTIFIED. CONTAINMENT PROTOCOL APPLICABLE." 08852_ Terminal disabled. Map ----- +----------------------------------------------------+ | # #???????????????????????????? | | # #???????????????????????????? | | ### #?########??????????????????? | | ####+############ #? [ #??????????????????? | | #* # # """ #??????????????????? | | # # # """ #??????????????????? | | " """ # " + """ #??????????????????? | | " """" # # # ] #??????????????????? | | " """ # # # """ =#??????????????????? | | # = ?# #?""" #??????????????????? | | ######### #?""" ! #??????????????????? | | ##+######## # #?? #??????????????????? | | # # ##########??????????????????? | | # """ / ?????????????? | | #+###### # """ # ?????????????? | | !] + # """ # ?????????????? | | # # # ?????????????? | | # # "" ######## #######??????????????? | | ########! #"""" #??????# #????????????????????? | | ???##### #%"T #??????# #????????????????????? | | ?#"" " # "/"""" #??????# #????????????????????? | | ?# " #g%# "" #??????# #????????????????????? | | ##"[ /"%# #??????# #????????????????????# | | #" # g#######??????# ggg#????????????????????# | | #" " " # g#????????????#i #????????????????????? | | #""""" # #????????##### @ ###??????????????????? | | ######## "#?????????#p K #??????????????????? | | ???????#"%#?????????# p ""#??????????????????? | | ???????# "#?????????# p ###??????????????????? | | ???????/"%#?????????#### e ##############???????? | | ???"???#"%#????????????# # #???????? | | ???????# "#????????????# ; #???????? | | ???????# #????????????#cl # """" """" #???????? | | ######## #??###########b # """" """"?????????? | | # # #??# p /g +? """" ""???????????# | | # """ # #??# """""7# ggg# """" """"?????????# | | # """ + #??# """""h; m/ " " #???????# | | # """ # #??# "" F"g# g# ######### | | # # #??# Epl ####b#? + | | # # #??# g #???g#?? ######### | | ######## #??# gg #???g#??? #???????# | | """T""" #?## g ]#???g#???? #???????# | | ### #########l#?????#######????????# | | """ """ ## *** | # """" # #????????????????????# | | """ """ # *** # """" #l#????????????????????# | | """ """ # ** """" # #????????????????????# | | # """" + / "??????????????????# | | # # # #????????????????????# | | ] # #????????????????????# | | ###/##### #????????????????????# | +----------------------------------------------------+ Best States ------------- Heat Dissipation 166 Energy Generation 34 Energy Capacity 325 Matter Stores 300 Matter Capacity 300 Sight Range 24 Terrain Scan Range 20 Terrain Scan Density 10 Jamming Range 16 Power Amplification 30 Additional Mass Support 12 Base Temperature (-) 200 Resistance: KI 35 Resistance: TH 35 Resistance: EX 35 Resistance: EM 35 Resistance: I 35 Resistance: S 35 Resistance: P 35 Utility Shielding 90 Weapon Shielding 90 Point Defense Rating 80 Evasion (%) 75 Targeting Accuracy 6 Melee Accuracy 12 Target Analysis 9 Core Analysis 6 Armor Integrity Analysis 40 Offensive Hacking 44 Defensive Hacking 24 Item Schematics ----------------- Flight Unit | -10/Materials | Hacked Com. Wheel | -8/Materials | Scanalyzed Mni. Grenade Launcher | -8/Materials | Scanalyzed Imp. Datajack | -8/Storage | Hacked Lgt. Nuclear Core | -8/Storage | Hacked Imp. Sensor Array | -8/Recycling | Hacked Imp. Thermal Generator | -8/Recycling | Hacked Lrn. Missile Launcher | -8/Recycling | Hacked Greatsword | -5/Factory | Scanalyzed Impulse Thruster Array | -5/Factory | Hacked Adv. Actuator Array | -5/Factory | Hacked Imp. Flight Unit | -5/Factory | Scanalyzed Sml. Storage Unit | -5/Factory | Scanalyzed Imp. Medium Treads | -5/Factory | Scanalyzed Assault Drone Bay | -5/Zhirov | Free Exp. Heat Sink | -5/Zhirov | Free Exp. Optical Array | -5/Zhirov | Free Imp. Arc Thrower | -5/Zhirov | Free Hardcell Cannon | -4/Extension | Hacked Matter Neutralizer | -4/Extension | Hacked Robot Schematics ------------------ C-35 Carver | -4/Extension | Hacked Fabricated ------------ Adv. Actuator Array | x1 | -5/Factory Alien Tech Used ----------------- Integrated Dissipator Transdimensional Reconstructor Achievements -------------- Deconstruction Main Advantage Maybe Next Time I'll Detach My Launcher Prison Break Project G-00 Revising The Future Challenges ------------ None Game ------ Seed AssembledSpectralAnalyzer Manual? 0 Play Time 04:44:57 Cumulative 194.7 hours Start 2022.03.26 @ 19:15:40 End 2022.03.30 @ 12:15:22 Sessions 1 Manual Loads 0 Difficulty Explorer Special Mode None Game No. 36 Rogue 9 Adventurer 0 Explorer 27 Win Type - Total 0 Types 0/0/0/0/0/0/0/0/0 Lore% 47 Gallery% 47 Achievement% 44 Wizard Run 0 Options --------- ASCII 0 Keyboard 0 Movement Vi Keybinds 0 Fullscreen 1 Font 36/Smallcaps Map View 76x56 Tactical HUD 1 Map Filters NONE Filters NONE Steam 1 RUN: b470f62e-d79a-48f9-8fe8-2638a8bb5f0c